[Event "Titled Tuesday Blitz June 20 Early 2023"]
[White "Porat, Tori"]
[Black "campochess"]
[WhiteFideId "30982626"]
[WhiteElo "1752"]
[BlackElo "2178"]
[Result "1-0"]
[Round "6"]
[TimeControl "180+2"]
[Date "2023.06.20"]
[WhiteClock "0:00:14"]
[BlackClock "0:00:00"]
[Board "201"]

1. d4 {[%clk 0:03:00]}  c5 {[%clk 0:02:53]} 2. d5 {[%clk 0:02:58]}  Nf6 {[%clk 0:02:52]} 3. c4 {[%clk 0:02:56]}  b5 {[%clk 0:02:52]} 4. cxb5 {[%clk 0:02:53]}  a6 {[%clk 0:02:52]} 5. Nc3 {[%clk 0:02:52]}  axb5 {[%clk 0:02:48]} 6. Nxb5 {[%clk 0:02:51]}  e6 {[%clk 0:02:47]} 7. dxe6 {[%clk 0:02:37]}  fxe6 {[%clk 0:02:46]} 8. Nd6+ {[%clk 0:02:37]}  Bxd6 {[%clk 0:02:45]} 9. Qxd6 {[%clk 0:02:36]}  Ne4 {[%clk 0:02:32]} 10. Qd3 {[%clk 0:02:26]}  Bb7 {[%clk 0:02:32]} 11. Nf3 {[%clk 0:02:24]}  Nc6 {[%clk 0:02:29]} 12. g3 {[%clk 0:02:20]}  Nb4 {[%clk 0:02:28]} 13. Qd1 {[%clk 0:01:49]}  Rxa2 {[%clk 0:02:19]} 14. Rxa2 {[%clk 0:01:46]}  Nxa2 {[%clk 0:02:19]} 15. Bd2 {[%clk 0:01:43]}  Nb4 {[%clk 0:02:16]} 16. Bxb4 {[%clk 0:01:31]}  cxb4 {[%clk 0:02:15]} 17. Bg2 {[%clk 0:01:31]}  O-O {[%clk 0:02:15]} 18. O-O {[%clk 0:01:30]}  d5 {[%clk 0:02:15]} 19. Qb3 {[%clk 0:01:28]}  Qe7 {[%clk 0:02:11]} 20. Nd4 {[%clk 0:01:17]}  e5 {[%clk 0:02:05]} 21. Bxe4 {[%clk 0:01:12]}  exd4 {[%clk 0:02:02]} 22. Bxd5+ {[%clk 0:01:12]}  Kh8 {[%clk 0:02:01]} 23. Bxb7 {[%clk 0:01:11]}  Qxb7 {[%clk 0:02:00]} 24. Qd3 {[%clk 0:01:09]}  Qb6 {[%clk 0:01:52]} 25. Rd1 {[%clk 0:01:04]}  h6 {[%clk 0:01:41]} 26. Qxd4 {[%clk 0:01:04]}  Qb5 {[%clk 0:01:42]} 27. Qd3 {[%clk 0:01:00]}  Qb6 {[%clk 0:01:40]} 28. Qd4 {[%clk 0:00:56]}  Qe6 {[%clk 0:01:38]} 29. e4 {[%clk 0:00:50]}  Qb3 {[%clk 0:01:35]} 30. Rc1 {[%clk 0:00:47]}  Kh7 {[%clk 0:01:31]} 31. Rc7 {[%clk 0:00:45]}  Rg8 {[%clk 0:01:23]} 32. e5 {[%clk 0:00:42]}  Qe6 {[%clk 0:01:16]} 33. Qe4+ {[%clk 0:00:41]}  Kh8 {[%clk 0:01:16]} 34. Rc6 {[%clk 0:00:39]}  Qb3 {[%clk 0:01:05]} 35. Qf4 {[%clk 0:00:31]}  Qd1+ {[%clk 0:00:57]} 36. Kg2 {[%clk 0:00:26]}  Qd5+ {[%clk 0:00:57]} 37. Qf3 {[%clk 0:00:26]}  Qxe5 {[%clk 0:00:56]} 38. Qe3 {[%clk 0:00:23]}  Qd5+ {[%clk 0:00:56]} 39. Qf3 {[%clk 0:00:23]}  Qd7 {[%clk 0:00:51]} 40. Rg6 {[%clk 0:00:18]}  Qe7 {[%clk 0:00:42]} 41. Qf4 {[%clk 0:00:17]}  Rf8 {[%clk 0:00:38]} 42. Qd4 {[%clk 0:00:15]}  Qb7+ {[%clk 0:00:34]} 43. Kg1 {[%clk 0:00:15]}  Re8 {[%clk 0:00:31]} 44. Rxh6+ {[%clk 0:00:15]}  Kg8 {[%clk 0:00:30]} 45. Qc4+ {[%clk 0:00:15]}  Qf7 {[%clk 0:00:24]} 46. Rh8+ {[%clk 0:00:14]}  Kxh8 {[%clk 0:00:24]} 47. Qxf7 {[%clk 0:00:15]}  Re1+ {[%clk 0:00:18]} 48. Kg2 {[%clk 0:00:15]}  b3 {[%clk 0:00:18]} 49. Qf8+ {[%clk 0:00:15]}  Kh7 {[%clk 0:00:17]} 50. Qf5+ {[%clk 0:00:16]}  Kh8 {[%clk 0:00:16]} 51. Qc8+ {[%clk 0:00:15]}  Kh7 {[%clk 0:00:15]} 52. Qc3 {[%clk 0:00:14]}  Re7 {[%clk 0:00:08]} 53. Qxb3 {[%clk 0:00:14]}  Rf7 {[%clk 0:00:07]} 54. Qd3+ {[%clk 0:00:14]}  g6 {[%clk 0:00:05]} 55. b4 {[%clk 0:00:14]}  Kg7 {[%clk 0:00:04]} 56. b5 {[%clk 0:00:15]}  Kh7 {[%clk 0:00:04]} 57. b6 {[%clk 0:00:15]}  Kg7 {[%clk 0:00:03]} 58. Qd4+ {[%clk 0:00:15]}  Kh7 {[%clk 0:00:03]} 59. Qh4+ {[%clk 0:00:15]}  Kg7 {[%clk 0:00:02]} 60. Qd8 {[%clk 0:00:14]}  Rf8 {[%clk 0:00:00]} 61. Qc7+ {[%clk 0:00:14]} 1-0


[Site "https://www.chess.com"]

[Event "Titled Tuesday Blitz June 20 Early 2023"]
[White "Gardezi, Arsal"]
[Black "Lohani, Sujana"]
[WhiteFideId "30949521"]
[BlackFideId "12311987"]
[WhiteElo "1906"]
[BlackElo "1718"]
[Result "1-0"]
[Round "6"]
[TimeControl "180+2"]
[Date "2023.06.20"]
[WhiteClock "0:00:09"]
[BlackClock "0:00:00"]
[Board "202"]

1. d4 {[%clk 0:02:57]}  Nf6 {[%clk 0:02:26]} 2. c4 {[%clk 0:02:52]}  g6 {[%clk 0:02:24]} 3. Nc3 {[%clk 0:02:47]}  Bg7 {[%clk 0:02:22]} 4. e4 {[%clk 0:02:33]}  d6 {[%clk 0:02:20]} 5. Nf3 {[%clk 0:02:34]}  O-O {[%clk 0:02:20]} 6. Be2 {[%clk 0:02:34]}  e5 {[%clk 0:02:18]} 7. O-O {[%clk 0:02:33]}  Nc6 {[%clk 0:02:17]} 8. d5 {[%clk 0:02:26]}  Ne7 {[%clk 0:02:16]} 9. h3 {[%clk 0:02:27]}  Ne8 {[%clk 0:02:15]} 10. b4 {[%clk 0:02:19]}  f5 {[%clk 0:02:12]} 11. Bg5 {[%clk 0:02:15]}  f4 {[%clk 0:02:11]} 12. c5 {[%clk 0:02:09]}  h6 {[%clk 0:02:10]} 13. Bxe7 {[%clk 0:02:09]}  Qxe7 {[%clk 0:02:10]} 14. Nb5 {[%clk 0:02:08]}  a6 {[%clk 0:02:07]} 15. Na3 {[%clk 0:02:02]}  g5 {[%clk 0:02:04]} 16. cxd6 {[%clk 0:02:00]}  cxd6 {[%clk 0:02:03]} 17. Nc4 {[%clk 0:01:59]}  g4 {[%clk 0:01:55]} 18. hxg4 {[%clk 0:01:50]}  Bxg4 {[%clk 0:01:53]} 19. Rc1 {[%clk 0:01:47]}  Rf6 {[%clk 0:01:49]} 20. Nh2 {[%clk 0:01:25]}  Bxe2 {[%clk 0:01:30]} 21. Qxe2 {[%clk 0:01:25]}  Rg6 {[%clk 0:01:29]} 22. Rc3 {[%clk 0:01:22]}  Qg5 {[%clk 0:01:28]} 23. Qf3 {[%clk 0:01:22]}  b5 {[%clk 0:01:22]} 24. Nb6 {[%clk 0:01:19]}  Rb8 {[%clk 0:01:16]} 25. Nc8 {[%clk 0:01:05]}  Bf8 {[%clk 0:01:14]} 26. Rfc1 {[%clk 0:01:04]}  Rb7 {[%clk 0:01:13]} 27. Rc6 {[%clk 0:01:01]}  Rbg7 {[%clk 0:01:10]} 28. Kh1 {[%clk 0:00:25]}  Qh4 {[%clk 0:01:04]} 29. Qh3 {[%clk 0:00:19]}  Qxf2 {[%clk 0:01:02]} 30. R6c2 {[%clk 0:00:19]}  Qd4 {[%clk 0:01:00]} 31. Nf3 {[%clk 0:00:16]}  Qxe4 {[%clk 0:00:58]} 32. Nh4 {[%clk 0:00:16]}  Rg3 {[%clk 0:00:57]} 33. Qf5 {[%clk 0:00:15]}  Qxb4 {[%clk 0:00:44]} 34. Qe6+ {[%clk 0:00:16]}  Kh7 {[%clk 0:00:31]} 35. Qxe8 {[%clk 0:00:16]}  Rg8 {[%clk 0:00:27]} 36. Nf5 {[%clk 0:00:16]}  Qe4 {[%clk 0:00:15]} 37. Qf7+ {[%clk 0:00:14]}  Kh8 {[%clk 0:00:13]} 38. Nxg3 {[%clk 0:00:14]}  fxg3 {[%clk 0:00:12]} 39. Qh5 {[%clk 0:00:12]}  Kh7 {[%clk 0:00:10]} 40. Rc7+ {[%clk 0:00:12]}  Bg7 {[%clk 0:00:09]} 41. Ne7 {[%clk 0:00:11]}  Qf4 {[%clk 0:00:08]} 42. Nxg8 {[%clk 0:00:10]}  Kxg8 {[%clk 0:00:06]} 43. Rxg7+ {[%clk 0:00:09]}  Kxg7 {[%clk 0:00:06]} 44. Rc7+ {[%clk 0:00:10]}  Kh8 {[%clk 0:00:00]} 45. Qe8+ {[%clk 0:00:09]} 1-0


[Site "https://www.chess.com"]

[Event "Titled Tuesday Blitz June 20 Early 2023"]
[White "Vachier-Lagrave, Maxime"]
[Black "Nakamura, Hikaru"]
[WhiteFideId "623539"]
[BlackFideId "2016192"]
[WhiteElo "2739"]
[BlackElo "2874"]
[Result "1/2-1/2"]
[Round "7"]
[TimeControl "180+2"]
[Date "2023.06.20"]
[WhiteClock "0:00:43"]
[BlackClock "0:00:07"]
[Board "2"]

1. e4 {[%clk 0:03:00]}  e5 {[%clk 0:02:52]} 2. Nf3 {[%clk 0:03:00]}  Nc6 {[%clk 0:02:53]} 3. Bc4 {[%clk 0:03:00]}  Nf6 {[%clk 0:02:53]} 4. d3 {[%clk 0:03:01]}  Bc5 {[%clk 0:02:52]} 5. O-O {[%clk 0:03:01]}  d6 {[%clk 0:02:52]} 6. c3 {[%clk 0:03:01]}  a6 {[%clk 0:02:53]} 7. Re1 {[%clk 0:03:00]}  Ba7 {[%clk 0:02:53]} 8. a4 {[%clk 0:03:00]}  h6 {[%clk 0:02:52]} 9. Nbd2 {[%clk 0:02:59]}  O-O {[%clk 0:02:53]} 10. h3 {[%clk 0:02:56]}  Re8 {[%clk 0:02:52]} 11. b4 {[%clk 0:02:55]}  Be6 {[%clk 0:02:52]} 12. Bxe6 {[%clk 0:02:55]}  Rxe6 {[%clk 0:02:53]} 13. Qc2 {[%clk 0:02:54]}  Qd7 {[%clk 0:02:51]} 14. Nf1 {[%clk 0:02:54]}  Ne7 {[%clk 0:02:44]} 15. Be3 {[%clk 0:02:39]}  Bxe3 {[%clk 0:02:36]} 16. Nxe3 {[%clk 0:02:40]}  Ng6 {[%clk 0:02:35]} 17. g3 {[%clk 0:02:40]}  d5 {[%clk 0:02:29]} 18. Kh2 {[%clk 0:02:38]}  c6 {[%clk 0:02:27]} 19. c4 {[%clk 0:02:31]}  d4 {[%clk 0:02:23]} 20. Nf5 {[%clk 0:02:27]}  a5 {[%clk 0:02:19]} 21. c5 {[%clk 0:02:21]}  Ne7 {[%clk 0:02:06]} 22. N3h4 {[%clk 0:02:11]}  Nxf5 {[%clk 0:01:39]} 23. Nxf5 {[%clk 0:02:12]}  axb4 {[%clk 0:01:40]} 24. Reb1 {[%clk 0:02:11]}  g6 {[%clk 0:01:40]} 25. Nd6 {[%clk 0:02:00]}  Rxd6 {[%clk 0:01:35]} 26. cxd6 {[%clk 0:02:00]}  Qxd6 {[%clk 0:01:36]} 27. Qc4 {[%clk 0:01:58]}  c5 {[%clk 0:01:36]} 28. a5 {[%clk 0:01:59]}  Qc6 {[%clk 0:01:22]} 29. a6 {[%clk 0:01:58]}  b5 {[%clk 0:01:18]} 30. Qa2 {[%clk 0:01:58]}  Ra7 {[%clk 0:01:15]} 31. Qa5 {[%clk 0:01:56]}  Kg7 {[%clk 0:01:14]} 32. Rc1 {[%clk 0:01:55]}  Nd7 {[%clk 0:01:01]} 33. Qxb4 {[%clk 0:01:42]}  Rxa6 {[%clk 0:01:01]} 34. Rxa6 {[%clk 0:01:42]}  Qxa6 {[%clk 0:01:02]} 35. Rxc5 {[%clk 0:01:42]}  Nxc5 {[%clk 0:00:51]} 36. Qxc5 {[%clk 0:01:43]}  b4 {[%clk 0:00:49]} 37. Kg2 {[%clk 0:01:34]}  Qxd3 {[%clk 0:00:22]} 38. Qxe5+ {[%clk 0:01:33]}  Kh7 {[%clk 0:00:22]} 39. Qd5 {[%clk 0:01:33]}  Kg8 {[%clk 0:00:22]} 40. e5 {[%clk 0:01:28]}  Qf5 {[%clk 0:00:16]} 41. Qd8+ {[%clk 0:01:24]}  Kh7 {[%clk 0:00:15]} 42. Qxd4 {[%clk 0:01:24]}  b3 {[%clk 0:00:16]} 43. Qb4 {[%clk 0:01:19]}  Qe6 {[%clk 0:00:13]} 44. Qb5 {[%clk 0:01:16]}  h5 {[%clk 0:00:14]} 45. h4 {[%clk 0:01:13]}  Kg7 {[%clk 0:00:14]} 46. Kf1 {[%clk 0:01:01]}  f6 {[%clk 0:00:14]} 47. Qb7+ {[%clk 0:01:00]}  Qf7 {[%clk 0:00:14]} 48. exf6+ {[%clk 0:01:00]}  Kxf6 {[%clk 0:00:15]} 49. Qb5 {[%clk 0:00:59]}  Qe6 {[%clk 0:00:14]} 50. Qg5+ {[%clk 0:00:52]}  Kf7 {[%clk 0:00:13]} 51. Qb5 {[%clk 0:00:53]}  Ke7 {[%clk 0:00:11]} 52. Qc5+ {[%clk 0:00:52]}  Kd7 {[%clk 0:00:10]} 53. Qb5+ {[%clk 0:00:51]}  Kc7 {[%clk 0:00:08]} 54. Qc5+ {[%clk 0:00:44]}  Kb7 {[%clk 0:00:09]} 55. Qb5+ {[%clk 0:00:44]}  Qb6 {[%clk 0:00:09]} 56. Qd7+ {[%clk 0:00:44]}  Kb8 {[%clk 0:00:10]} 57. Qe8+ {[%clk 0:00:44]}  Kb7 {[%clk 0:00:10]} 58. Qd7+ {[%clk 0:00:44]}  Kb8 {[%clk 0:00:10]} 59. Qe8+ {[%clk 0:00:44]}  Ka7 {[%clk 0:00:11]} 60. Qd7+ {[%clk 0:00:43]}  Qb7 {[%clk 0:00:08]} 61. Qd4+ {[%clk 0:00:43]}  Qb6 {[%clk 0:00:08]} 62. Qd7+ {[%clk 0:00:43]}  Kb8 {[%clk 0:00:07]} 1/2-1/2


[Site "https://www.chess.com"]

[Event "Titled Tuesday Blitz June 20 Early 2023"]
[White "Martinez Alcantara, Jose Eduardo"]
[Black "Tabatabaei, M. Amin"]
[WhiteFideId "3805662"]
[BlackFideId "12521213"]
[WhiteElo "2711"]
[BlackElo "2575"]
[Result "1-0"]
[Round "7"]
[TimeControl "180+2"]
[Date "2023.06.20"]
[WhiteClock "0:00:34"]
[BlackClock "0:00:00"]
[Board "3"]

1. e4 {[%clk 0:02:59]}  c5 {[%clk 0:03:00]} 2. Nf3 {[%clk 0:02:59]}  d6 {[%clk 0:03:00]} 3. c3 {[%clk 0:02:59]}  Nf6 {[%clk 0:03:01]} 4. h3 {[%clk 0:03:00]}  Nc6 {[%clk 0:02:52]} 5. Bd3 {[%clk 0:03:00]}  e5 {[%clk 0:02:47]} 6. Bc2 {[%clk 0:02:59]}  d5 {[%clk 0:02:42]} 7. exd5 {[%clk 0:03:00]}  Qxd5 {[%clk 0:02:43]} 8. Qe2 {[%clk 0:03:00]}  Be7 {[%clk 0:02:40]} 9. d3 {[%clk 0:03:00]}  O-O {[%clk 0:02:39]} 10. Nbd2 {[%clk 0:03:00]}  Bf5 {[%clk 0:02:10]} 11. Ne4 {[%clk 0:02:55]}  Rad8 {[%clk 0:02:08]} 12. Bg5 {[%clk 0:02:44]}  Rfe8 {[%clk 0:02:01]} 13. g4 {[%clk 0:02:25]}  Bg6 {[%clk 0:01:51]} 14. Bxf6 {[%clk 0:02:20]}  Bxf6 {[%clk 0:01:50]} 15. h4 {[%clk 0:02:18]}  Be7 {[%clk 0:01:36]} 16. h5 {[%clk 0:02:12]}  Bxe4 {[%clk 0:01:36]} 17. dxe4 {[%clk 0:02:13]}  Qe6 {[%clk 0:01:36]} 18. Bb3 {[%clk 0:01:53]}  Qxg4 {[%clk 0:01:36]} 19. Bd5 {[%clk 0:01:51]}  Qf4 {[%clk 0:01:32]} 20. Qe3 {[%clk 0:01:48]}  Qxe3+ {[%clk 0:01:19]} 21. fxe3 {[%clk 0:01:49]}  Bf6 {[%clk 0:01:08]} 22. O-O-O {[%clk 0:01:48]}  h6 {[%clk 0:01:04]} 23. Kc2 {[%clk 0:01:40]}  Re7 {[%clk 0:01:02]} 24. Bxc6 {[%clk 0:01:32]}  Rxd1 {[%clk 0:01:02]} 25. Rxd1 {[%clk 0:01:33]}  bxc6 {[%clk 0:01:03]} 26. Rd8+ {[%clk 0:01:34]}  Kh7 {[%clk 0:01:04]} 27. Rc8 {[%clk 0:01:34]}  g6 {[%clk 0:00:57]} 28. Rxc6 {[%clk 0:01:32]}  Kg7 {[%clk 0:00:57]} 29. Kd3 {[%clk 0:01:11]}  gxh5 {[%clk 0:00:56]} 30. Ke2 {[%clk 0:01:12]}  Rb7 {[%clk 0:00:35]} 31. b3 {[%clk 0:01:11]}  Be7 {[%clk 0:00:21]} 32. Nxe5 {[%clk 0:01:09]}  h4 {[%clk 0:00:22]} 33. Kf3 {[%clk 0:01:02]}  h5 {[%clk 0:00:21]} 34. Nd3 {[%clk 0:01:02]}  Rd7 {[%clk 0:00:17]} 35. Nf4 {[%clk 0:00:58]}  Rd2 {[%clk 0:00:18]} 36. Nxh5+ {[%clk 0:00:56]}  Kh7 {[%clk 0:00:17]} 37. Nf4 {[%clk 0:00:54]}  Rxa2 {[%clk 0:00:16]} 38. Rc7 {[%clk 0:00:54]}  Bd6 {[%clk 0:00:12]} 39. Rxf7+ {[%clk 0:00:54]}  Kg8 {[%clk 0:00:13]} 40. Rf6 {[%clk 0:00:47]}  Be5 {[%clk 0:00:12]} 41. Rf5 {[%clk 0:00:47]}  Bxc3 {[%clk 0:00:12]} 42. Rxc5 {[%clk 0:00:48]}  Be1 {[%clk 0:00:12]} 43. Kg4 {[%clk 0:00:43]}  Ra3 {[%clk 0:00:10]} 44. Rb5 {[%clk 0:00:40]}  a5 {[%clk 0:00:10]} 45. e5 {[%clk 0:00:41]}  Bb4 {[%clk 0:00:10]} 46. Kf5 {[%clk 0:00:38]}  Rxb3 {[%clk 0:00:10]} 47. Rb8+ {[%clk 0:00:34]}  Kg7 {[%clk 0:00:08]} 48. Rb7+ {[%clk 0:00:33]}  Kg8 {[%clk 0:00:05]} 49. Nd5 {[%clk 0:00:33]}  h3 {[%clk 0:00:03]} 50. Nf6+ {[%clk 0:00:34]}  Kf8 {[%clk 0:00:04]} 51. Ke6 {[%clk 0:00:34]}  Be7 {[%clk 0:00:00]} 52. Rxb3 {[%clk 0:00:34]} 1-0


[Site "https://www.chess.com"]

[Event "Titled Tuesday Blitz June 20 Early 2023"]
[White "Zhigalko, Sergei"]
[Black "Lazavik, Denis"]
[WhiteFideId "13502956"]
[BlackFideId "13515110"]
[WhiteElo "2626"]
[BlackElo "2560"]
[Result "1-0"]
[Round "7"]
[TimeControl "180+2"]
[Date "2023.06.20"]
[WhiteClock "0:00:11"]
[BlackClock "0:00:04"]
[Board "6"]

1. e4 {[%clk 0:03:00]}  e5 {[%clk 0:03:00]} 2. Nf3 {[%clk 0:03:00]}  Nc6 {[%clk 0:03:00]} 3. Bc4 {[%clk 0:02:59]}  Bc5 {[%clk 0:03:00]} 4. O-O {[%clk 0:02:58]}  Nf6 {[%clk 0:03:00]} 5. d3 {[%clk 0:02:59]}  d6 {[%clk 0:03:00]} 6. Nbd2 {[%clk 0:02:59]}  a6 {[%clk 0:02:58]} 7. c3 {[%clk 0:02:59]}  O-O {[%clk 0:02:59]} 8. Bb3 {[%clk 0:02:58]}  h6 {[%clk 0:02:55]} 9. h3 {[%clk 0:02:57]}  Be6 {[%clk 0:02:55]} 10. Re1 {[%clk 0:02:56]}  Bxb3 {[%clk 0:02:51]} 11. axb3 {[%clk 0:02:47]}  a5 {[%clk 0:02:51]} 12. Nc4 {[%clk 0:02:43]}  Re8 {[%clk 0:02:50]} 13. Be3 {[%clk 0:02:42]}  Bxe3 {[%clk 0:02:47]} 14. Nxe3 {[%clk 0:02:43]}  b6 {[%clk 0:02:47]} 15. Nh2 {[%clk 0:02:35]}  Qd7 {[%clk 0:02:38]} 16. Qf3 {[%clk 0:02:33]}  Ne7 {[%clk 0:02:35]} 17. Nhg4 {[%clk 0:02:27]}  Nxg4 {[%clk 0:02:29]} 18. hxg4 {[%clk 0:02:27]}  Qe6 {[%clk 0:02:29]} 19. Nd5 {[%clk 0:02:09]}  Nxd5 {[%clk 0:02:17]} 20. exd5 {[%clk 0:02:10]}  Qd7 {[%clk 0:02:17]} 21. Re4 {[%clk 0:02:06]}  Qb5 {[%clk 0:01:45]} 22. Rc4 {[%clk 0:01:59]}  Qxb3 {[%clk 0:01:14]} 23. Rxc7 {[%clk 0:01:59]}  Rf8 {[%clk 0:01:14]} 24. Rc6 {[%clk 0:01:45]}  Qxb2 {[%clk 0:00:46]} 25. Qd1 {[%clk 0:01:45]}  a4 {[%clk 0:00:44]} 26. Rb1 {[%clk 0:01:36]}  Qa2 {[%clk 0:00:27]} 27. Rxd6 {[%clk 0:00:44]}  a3 {[%clk 0:00:18]} 28. c4 {[%clk 0:00:35]}  e4 {[%clk 0:00:18]} 29. Rdxb6 {[%clk 0:00:25]}  exd3 {[%clk 0:00:18]} 30. Qxd3 {[%clk 0:00:26]}  Rfc8 {[%clk 0:00:18]} 31. R6b3 {[%clk 0:00:16]}  g6 {[%clk 0:00:08]} 32. d6 {[%clk 0:00:16]}  Re8 {[%clk 0:00:06]} 33. d7 {[%clk 0:00:12]}  Red8 {[%clk 0:00:06]} 34. c5 {[%clk 0:00:13]}  Ra7 {[%clk 0:00:05]} 35. c6 {[%clk 0:00:12]}  Kg7 {[%clk 0:00:04]} 36. Qd4+ {[%clk 0:00:11]} 1-0


[Site "https://www.chess.com"]

[Event "Titled Tuesday Blitz June 20 Early 2023"]
[White "Henriquez Villagra, Cristobal"]
[Black "Paravyan, David"]
[WhiteFideId "3409350"]
[BlackFideId "4194985"]
[WhiteElo "2542"]
[BlackElo "2563"]
[Result "0-1"]
[Round "7"]
[TimeControl "180+2"]
[Date "2023.06.20"]
[WhiteClock "0:00:13"]
[BlackClock "0:00:34"]
[Board "8"]

1. Nf3 {[%clk 0:02:56]}  d5 {[%clk 0:02:59]} 2. g3 {[%clk 0:02:57]}  Nf6 {[%clk 0:02:58]} 3. Bg2 {[%clk 0:02:57]}  e6 {[%clk 0:02:59]} 4. O-O {[%clk 0:02:57]}  Be7 {[%clk 0:03:00]} 5. d3 {[%clk 0:02:58]}  O-O {[%clk 0:03:00]} 6. Nc3 {[%clk 0:02:58]}  d4 {[%clk 0:02:59]} 7. Nb1 {[%clk 0:02:57]}  Nc6 {[%clk 0:02:59]} 8. c3 {[%clk 0:02:58]}  e5 {[%clk 0:02:59]} 9. b4 {[%clk 0:02:54]}  a6 {[%clk 0:02:59]} 10. a3 {[%clk 0:02:55]}  Re8 {[%clk 0:02:57]} 11. Bb2 {[%clk 0:02:55]}  Bf8 {[%clk 0:02:55]} 12. Nbd2 {[%clk 0:02:54]}  h6 {[%clk 0:02:50]} 13. Rc1 {[%clk 0:02:54]}  dxc3 {[%clk 0:02:49]} 14. Bxc3 {[%clk 0:02:42]}  Nd4 {[%clk 0:02:49]} 15. Bxd4 {[%clk 0:02:38]}  exd4 {[%clk 0:02:50]} 16. Nb3 {[%clk 0:02:39]}  a5 {[%clk 0:02:46]} 17. Nxa5 {[%clk 0:02:28]}  c5 {[%clk 0:02:27]} 18. Nd2 {[%clk 0:02:18]}  Nd5 {[%clk 0:02:20]} 19. Bxd5 {[%clk 0:01:43]}  Qxd5 {[%clk 0:02:21]} 20. Qb3 {[%clk 0:01:43]}  Qxb3 {[%clk 0:02:16]} 21. Naxb3 {[%clk 0:01:36]}  cxb4 {[%clk 0:02:16]} 22. axb4 {[%clk 0:01:36]}  Bxb4 {[%clk 0:02:16]} 23. Nf3 {[%clk 0:00:28]}  Bh3 {[%clk 0:02:15]} 24. Nfxd4 {[%clk 0:00:26]}  Bxf1 {[%clk 0:02:15]} 25. Kxf1 {[%clk 0:00:27]}  Rec8 {[%clk 0:02:14]} 26. Rb1 {[%clk 0:00:27]}  Bc3 {[%clk 0:02:09]} 27. Nb5 {[%clk 0:00:26]}  Bf6 {[%clk 0:02:06]} 28. d4 {[%clk 0:00:25]}  Rc2 {[%clk 0:02:04]} 29. Nc1 {[%clk 0:00:19]}  h5 {[%clk 0:01:39]} 30. h3 {[%clk 0:00:19]}  g5 {[%clk 0:01:38]} 31. g4 {[%clk 0:00:20]}  h4 {[%clk 0:01:36]} 32. Nd3 {[%clk 0:00:19]}  Raa2 {[%clk 0:01:36]} 33. e3 {[%clk 0:00:19]}  Rd2 {[%clk 0:01:35]} 34. Rb3 {[%clk 0:00:19]}  Be7 {[%clk 0:01:30]} 35. Kg2 {[%clk 0:00:19]}  Rac2 {[%clk 0:01:22]} 36. d5 {[%clk 0:00:19]}  Rc8 {[%clk 0:01:03]} 37. Kf3 {[%clk 0:00:19]}  Rd1 {[%clk 0:00:59]} 38. Nd4 {[%clk 0:00:19]}  Rh1 {[%clk 0:00:56]} 39. Kg2 {[%clk 0:00:18]}  Rd1 {[%clk 0:00:55]} 40. Rxb7 {[%clk 0:00:15]}  Bf6 {[%clk 0:00:51]} 41. Nb2 {[%clk 0:00:11]}  Rd2 {[%clk 0:00:49]} 42. d6 {[%clk 0:00:11]}  Bxd4 {[%clk 0:00:49]} 43. exd4 {[%clk 0:00:12]}  Rxd4 {[%clk 0:00:48]} 44. Rb5 {[%clk 0:00:12]}  f6 {[%clk 0:00:47]} 45. Rb6 {[%clk 0:00:13]}  Kf7 {[%clk 0:00:45]} 46. Kf3 {[%clk 0:00:13]}  Rc3+ {[%clk 0:00:45]} 47. Ke2 {[%clk 0:00:13]}  Rxh3 {[%clk 0:00:44]} 48. Nd1 {[%clk 0:00:14]}  Rhd3 {[%clk 0:00:40]} 49. Ne3 {[%clk 0:00:14]}  Rd2+ {[%clk 0:00:38]} 50. Kf3 {[%clk 0:00:14]}  Rf4+ {[%clk 0:00:37]} 51. Kg2 {[%clk 0:00:14]}  Rfxf2+ {[%clk 0:00:38]} 52. Kg1 {[%clk 0:00:15]}  Rfe2 {[%clk 0:00:37]} 53. Nf1 {[%clk 0:00:15]}  Rd1 {[%clk 0:00:35]} 54. Rb7+ {[%clk 0:00:15]}  Kg6 {[%clk 0:00:34]} 55. d7 {[%clk 0:00:13]}  h3 {[%clk 0:00:34]} 0-1


[Site "https://www.chess.com"]